bitfinex/quotes_SOLUSD_20230701
["timestamp","ask_amount","ask_price","bid_price","bid_amount"]
[1688175906574,81.655,18.517,18.502,90.6663]
[1688175906779,78.18254508,18.52,18.496,58.874]
[1688175906780,22.852,18.51,18.496,58.874]
[1688175906979,22.852,18.51,18.497,98.5582]
[1688175907182,22.852,18.51,18.5,22.863]
[1688175907361,22.852,18.51,18.501,42.862]
[1688175907979,12.45968,18.509,18.502,10.83719922]
[1688175908171,12.45968,18.509,18.49,26.87260782]
[1688175908172,81.698,18.507,18.495,22.87]
[1688175908372,81.698,18.507,18.492,98.5582]
[1688175908678,12.45968,18.509,18.495,22.87]
[1688175908866,22.847,18.515,18.495,22.87]
[1688175909064,22.847,18.515,18.496,10.83719922]
[1688175909285,8.78254508,18.523,18.496,10.83719922]
[1688175909487,22.845,18.516,18.504,81.71]
[1688175910084,22.844,18.517,18.504,92.54719922]
[1688175910266,22.839,18.521,18.509,22.853]
[1688175910465,12.45968,18.522,18.51,55.0]
[1688175910684,58.799,18.523,18.51,55.0]
[1688175910685,58.799,18.523,18.513,188.995]
[1688175910979,58.799,18.523,18.516,188.964]
[1688175911184,58.799,18.523,18.517,55.0]
[1688175911483,22.83,18.528,18.518,22.841]
[1688175911667,27.48000421,18.532,18.518,22.841]
[1688175911867,22.83,18.528,18.518,22.841]
[1688175912978,22.83,18.528,18.519,55.0]
[1688175913170,22.83,18.528,18.521,22.838]
[1688175913564,22.828,18.53,18.522,55.0]
[1688175913867,58.749,18.537,18.522,77.836]
[1688175914080,22.823,18.534,18.522,77.836]
[1688175914272,22.823,18.534,18.522,171.6712]
[1688175915785,22.823,18.534,18.522,148.8352]
[1688175915973,22.823,18.534,18.523,22.835]
[1688175916174,22.821,18.536,18.524,55.0]
[1688175916372,22.821,18.536,18.527,22.83]
[1688175916783,22.821,18.536,18.525,22.833]
[1688175916983,22.821,18.536,18.523,22.835]
[1688175917189,10.89366,18.535,18.522,93.8352]
[1688175917387,81.592,18.532,18.522,93.8352]
[1688175917681,81.592,18.532,18.512,58.825]
[1688175917885,92.48566,18.532,18.516,113.5972]
[1688175918096,92.48566,18.532,18.517,75.0]
[1688175918273,92.48566,18.532,18.52,22.84]
[1688175918470,92.48566,18.532,18.511,166.166]
[1688175918790,92.48566,18.532,18.513,22.847]
[1688175918791,81.62,18.525,18.513,22.847]
[1688175919372,92.51366,18.525,18.513,22.847]
[1688175919769,22.837,18.522,18.513,22.847]
[1688175921182,22.836,18.523,18.513,22.847]
[1688175921392,22.836,18.523,18.514,55.0]
[1688175921586,10.89366,18.524,18.516,22.844]
[1688175921792,113.5862,18.526,18.516,22.844]
[1688175921976,22.829,18.529,18.517,55.0]
[1688175922296,22.827,18.53,18.523,22.835]
[1688175922585,22.829,18.529,18.519,22.841]
[1688175922786,33.73288,18.529,18.518,22.842]
[1688175922977,56.56188,18.529,18.518,22.842]
[1688175923181,10.90388,18.528,18.517,22.843]
[1688175923374,22.834,18.525,18.517,22.843]
[1688175924083,22.829,18.529,18.517,22.843]
[1688175924284,22.83,18.528,18.521,22.838]
[1688175924683,22.829,18.529,18.521,22.838]
[1688175924898,22.83,18.528,18.521,22.838]
[1688175925792,45.658,18.529,18.521,22.838]
[1688175926086,22.829,18.529,18.522,55.0]
[1688175926300,22.829,18.529,18.524,22.835]
[1688175926703,22.827,18.531,18.524,22.835]
[1688175926994,22.829,18.53,18.524,22.835]
[1688175927301,22.829,18.529,18.517,58.809]
[1688175927499,22.829,18.529,18.518,75.0]
[1688175928811,22.829,18.529,18.52,22.839]
[1688175928988,22.829,18.53,18.521,75.0]
[1688175929190,22.829,18.53,18.523,22.835]
[1688175930103,45.657,18.53,18.523,22.835]
[1688175930290,45.657,18.53,18.522,22.837]
[1688175930689,22.829,18.53,18.522,130.114]
[1688175930889,22.822,18.535,18.523,55.0]
[1688175931190,61.5625325,18.539,18.526,22.832]
[1688175931508,10.90388,18.538,18.527,55.0]
[1688175931688,33.72188,18.538,18.53,22.827]
[1688175932096,27.443123,18.538,18.531,55.0]
[1688175932291,27.443123,18.538,18.533,22.824]
[1688175932808,27.443123,18.538,18.531,77.825]
[1688175933005,50.261123,18.538,18.531,77.825]
[1688175933304,50.261123,18.538,18.531,55.0]
[1688175933506,50.261123,18.538,18.522,58.792]
[1688175933691,50.261123,18.538,18.525,22.833]
[1688175933897,50.261123,18.538,18.526,55.0]
[1688175934296,50.261123,18.538,18.526,77.832]
[1688175938597,50.261123,18.538,18.526,22.832]
[1688175939915,50.261123,18.538,18.527,55.0]
[1688175940101,50.261123,18.538,18.528,22.829]
[1688175940301,50.261123,18.538,18.529,52.5]
[1688175941716,50.261123,18.538,18.529,75.328]
[1688175944314,69.72,18.56,18.53,34.72]
[1688175944520,129.935,18.548,18.535,22.821]
[1688175944720,129.935,18.548,18.536,146.3826]
[1688175944948,22.805,18.548,18.538,22.817]
[1688175945109,107.934278,18.55,18.539,55.0]
[1688175945310,130.737278,18.55,18.542,22.812]
[1688175945515,22.801,18.552,18.543,55.0]
[1688175945828,22.799,18.554,18.545,22.809]
[1688175946120,55.0,18.556,18.546,55.0]
[1688175946317,22.797,18.555,18.548,22.805]
[1688175946522,55.0,18.556,18.548,22.805]
[1688175946819,22.797,18.555,18.547,22.806]
[1688175947015,22.797,18.555,18.542,165.891]
[1688175947220,55.0,18.556,18.548,22.804]
[1688175947221,77.796,18.556,18.548,22.804]
[1688175947405,22.796,18.556,18.548,22.804]
[1688175947819,22.796,18.556,18.549,55.0]
[1688175948210,45.592,18.556,18.549,55.0]
[1688175948406,22.796,18.556,18.549,77.804]
[1688175948614,28.17783786,18.566,18.549,77.804]
[1688175948918,22.785,18.565,18.554,81.489]
[1688175949120,22.785,18.565,18.55,54.72]
[1688175949121,22.785,18.565,18.555,55.0]
[1688175949712,22.785,18.565,18.555,77.796]
[1688175950208,22.785,18.565,18.55,58.705]
[1688175950418,42.40873073,18.565,18.551,75.0]
[1688175952028,33.67878,18.565,18.551,97.8]
[1688175954930,22.785,18.565,18.551,108.63719922]
[1688175955107,31.50795073,18.57,18.552,10.83719922]
[1688175955308,22.78,18.569,18.557,81.476]
[1688175955514,22.78,18.569,18.558,55.0]
[1688175955717,22.78,18.569,18.559,22.791]
[1688175955938,129.786,18.569,18.556,22.795]
[1688175956224,10.89378,18.568,18.556,22.795]
[1688175956431,22.785,18.565,18.556,22.795]
[1688175956626,22.785,18.565,18.551,185.806]
[1688175956627,22.785,18.565,18.551,78.701]
[1688175956932,22.785,18.565,18.556,22.795]
[1688175958035,22.785,18.565,18.557,55.0]
[1688175958234,22.785,18.565,18.557,77.793]
[1688175960537,22.785,18.565,18.555,22.796]
[1688175961833,113.648,18.569,18.558,22.792]
[1688175962040,22.783,18.566,18.559,77.791]
[1688175962336,81.438,18.566,18.551,20.0]
[1688175962936,22.783,18.566,18.554,22.797]
[1688175963523,22.783,18.566,18.555,55.0]
[1688175963722,22.783,18.566,18.555,77.796]
[1688175965519,55.0,18.569,18.555,77.796]
[1688175965843,34.62,18.58,18.566,22.783]
[1688175965844,22.775,18.573,18.566,22.783]
[1688175966024,58.62,18.578,18.567,77.782]
[1688175966222,58.62,18.578,18.567,55.0]
[1688175966421,22.772,18.575,18.567,77.782]
[1688175966619,22.772,18.575,18.567,55.0]
[1688175966828,21.772,18.575,18.567,22.781]
[1688175967018,21.772,18.575,18.568,55.0]
[1688175967833,58.62,18.579,18.568,77.78]
[1688175968028,22.772,18.575,18.565,22.783]
[1688175968228,22.772,18.575,18.566,55.0]
[1688175969043,22.772,18.575,18.566,77.783]
[1688175971238,33.65546,18.575,18.555,58.688]
[1688175971443,85.88346,18.574,18.557,22.793]
[1688175971635,81.426,18.569,18.552,153.7631]
[1688175972933,81.426,18.569,18.554,22.797]
[1688175975028,81.426,18.569,18.552,95.0651]
[1688175975232,10.88346,18.568,18.552,95.0651]
[1688175975432,188.488,18.564,18.552,95.0651]
[1688175975646,188.488,18.564,18.55,22.803]
[1688175975948,188.488,18.564,18.551,20.0]
[1688175976336,188.55,18.558,18.544,97.1909]
[1688175976747,199.44378,18.558,18.544,97.1909]
[1688175977125,199.44378,18.558,18.542,22.812]
[1688175977330,198.44378,18.558,18.542,22.812]
[1688175977530,295.63468,18.558,18.542,22.812]
[1688175977746,198.44378,18.558,18.542,22.812]
[1688175977945,198.44378,18.558,18.544,22.81]
[1688175978153,198.44378,18.558,18.539,58.74]
[1688175978345,198.44378,18.558,18.54,20.0]
[1688175978534,257.18378,18.558,18.54,20.0]
[1688175978937,257.18378,18.558,18.54,42.814]
[1688175979449,257.18378,18.558,18.544,22.809]
[1688175979660,257.18378,18.558,18.545,55.0]
[1688175980149,257.18378,18.558,18.537,58.744]
[1688175980150,257.18378,18.558,18.539,22.815]
[1688175980449,257.18378,18.558,18.536,97.3609]
[1688175980450,85.89378,18.557,18.536,97.3609]
[1688175980651,188.616,18.551,18.537,22.819]
[1688175981649,188.616,18.551,18.538,77.817]
[1688175983335,22.802,18.551,18.539,20.0]
[1688175983535,22.802,18.551,18.543,22.811]
[1688175983736,22.8,18.552,18.544,77.809]
[1688175983952,107.08,18.557,18.544,22.809]
[1688175984157,107.08,18.557,18.545,55.0]
[1688175984353,22.799,18.553,18.547,22.806]
[1688175984537,55.0,18.558,18.548,55.0]
[1688175984737,22.799,18.553,18.548,55.0]
[1688175985340,22.799,18.553,18.54,141.891]
[1688175985545,22.799,18.553,18.543,22.81]
[1688175985755,22.799,18.553,18.544,55.0]
[1688175985956,22.799,18.553,18.544,77.809]
[1688175986340,22.798,18.554,18.544,77.809]
[1688175986646,22.797,18.555,18.544,77.809]
[1688175986950,22.789,18.562,18.545,20.0]
[1688175987140,22.789,18.562,18.55,81.508]
[1688175987341,22.789,18.562,18.551,116.8235]
[1688175987639,22.789,18.562,18.554,22.797]
[1688175987841,22.789,18.562,18.555,55.0]
[1688175988052,22.789,18.562,18.555,77.795]
[1688175992862,22.789,18.562,18.555,55.0]
[1688175993160,22.787,18.563,18.555,22.797]
[1688175993364,22.787,18.563,18.556,77.794]
[1688175993561,22.787,18.563,18.557,55.0]
[1688175994143,22.787,18.563,18.551,127.66069922]
[1688175994560,22.787,18.563,18.551,116.8235]
[1688175995270,22.783,18.566,18.551,150.46169922]
[1688175995562,22.782,18.568,18.552,65.83719922]
[1688175995775,22.782,18.568,18.556,81.479]
[1688175995973,22.782,18.568,18.56,22.79]
[1688175996151,22.782,18.568,18.557,55.0]
[1688175996152,22.782,18.568,18.561,77.789]
[1688175996350,22.782,18.568,18.561,22.789]
[1688175996553,22.782,18.568,18.559,22.791]
[1688175996767,22.782,18.568,18.553,58.694]
[1688175996947,22.782,18.568,18.556,22.794]
[1688175997149,22.782,18.568,18.557,55.0]
[1688175997369,22.782,18.568,18.557,77.794]
[1688175998444,22.782,18.568,18.557,88.63119922]
[1688175998663,22.782,18.568,18.558,10.83719922]
[1688175998852,22.782,18.568,18.561,22.789]
[1688175999053,22.782,18.568,18.562,55.0]
[1688175999365,22.782,18.568,18.562,77.787]
[1688175999753,22.782,18.568,18.559,96.3686]
[1688175999955,22.782,18.568,18.56,55.0]
[1688176000154,22.782,18.568,18.56,77.79]
[1688176001275,34.72,18.58,18.56,88.62719922]
[1688176001571,22.774,18.574,18.565,22.783]
[1688176001761,22.774,18.574,18.566,55.0]
[1688176004986,22.774,18.574,18.566,77.782]
[1688176006373,22.772,18.576,18.566,77.782]
[1688176006579,22.77,18.577,18.566,88.61919922]
[1688176007464,22.77,18.577,18.566,77.782]
[1688176007658,129.73,18.577,18.566,77.782]
[1688176007866,129.73,18.577,18.566,55.0]
[1688176008176,129.73,18.577,18.565,55.0]
[1688176008381,129.73,18.577,18.561,33.62519922]
[1688176008562,81.412,18.572,18.562,20.0]
[1688176009772,81.412,18.572,18.562,42.787]
[1688176010081,12.48085,18.576,18.562,53.62419922]
[1688176010371,22.772,18.575,18.566,22.782]
[1688176010758,12.48085,18.574,18.559,96.3686]
[1688176010978,20.0,18.573,18.56,22.789]
[1688176011278,81.423,18.57,18.559,119.1596]
[1688176012158,81.423,18.57,18.559,22.791]
[1688176013563,81.423,18.57,18.558,22.793]
[1688176013766,81.423,18.57,18.559,55.0]
[1688176014171,81.423,18.57,18.559,77.792]
[1688176015376,115.963,18.57,18.554,108.52319922]
[1688176015563,124.69295073,18.57,18.554,97.686]
[1688176015765,21.20285073,18.569,18.554,97.686]
[1688176015963,81.445,18.565,18.554,97.686]
[1688176016661,81.445,18.565,18.554,120.484]
[1688176017077,81.445,18.565,18.555,55.0]
[1688176018777,81.445,18.565,18.555,77.796]
[1688176021379,81.445,18.565,18.555,22.796]
[1688176021981,22.785,18.565,18.556,55.0]
[1688176022197,22.783,18.566,18.558,22.792]
[1688176022375,22.782,18.567,18.559,55.0]
[1688176022579,22.782,18.567,18.56,22.789]
[1688176022874,22.782,18.567,18.561,55.0]
[1688176024281,22.782,18.567,18.56,55.0]
[1688176025186,22.782,18.567,18.56,77.79]
[1688176025382,58.627,18.575,18.56,77.79]
[1688176025683,22.779,18.569,18.56,77.79]
[1688176026789,22.779,18.569,18.56,55.0]
[1688176027270,22.779,18.569,18.559,55.0]
[1688176027672,22.779,18.569,18.559,77.791]
[1688176030288,22.779,18.569,18.554,97.686]
[1688176030790,188.484,18.564,18.554,97.686]
[1688176031176,81.448,18.564,18.554,97.686]
[1688176031379,22.786,18.564,18.554,120.484]
[1688176031784,22.786,18.564,18.555,55.0]
[1688176031985,22.786,18.564,18.556,22.795]
[1688176032488,34.53,18.57,18.558,22.792]
[1688176032678,22.779,18.569,18.562,22.787]
[1688176032878,106.975,18.575,18.559,81.468]
[1688176033085,22.781,18.568,18.561,22.789]
[1688176033293,22.777,18.572,18.562,77.788]
[1688176033477,22.777,18.572,18.563,55.0]
[1688176034483,58.627,18.573,18.564,22.785]
[1688176034689,58.627,18.573,18.567,22.781]
[1688176034878,22.774,18.574,18.567,22.781]
[1688176035082,22.774,18.574,18.562,58.667]
[1688176035083,22.774,18.574,18.568,77.78]
[1688176035484,58.612,18.58,18.564,157.7964]
[1688176035690,58.619,18.578,18.569,22.779]
[1688176035907,22.77,18.577,18.57,77.777]
[1688176036188,22.77,18.577,18.57,77.778]
[1688176036391,92.72040885,18.584,18.57,77.778]
[1688176036691,22.764,18.582,18.57,136.42]
[1688176036879,22.764,18.582,18.571,20.0]
[1688176037079,22.762,18.584,18.574,22.773]
[1688176037283,22.762,18.584,18.575,55.0]
[1688176037489,22.762,18.584,18.576,22.77]
[1688176037784,22.762,18.584,18.577,55.0]
[1688176038297,22.762,18.584,18.577,77.769]
[1688176038998,22.762,18.584,18.577,55.0]
[1688176039298,22.762,18.584,18.577,77.769]
[1688176040099,22.762,18.584,18.577,22.769]
[1688176040297,22.762,18.584,18.578,55.0]
[1688176040598,22.76,18.586,18.578,77.768]
[1688176040785,22.757,18.588,18.578,77.768]
[1688176045587,22.757,18.588,18.573,99.1374]
[1688176045895,3.89551521,18.587,18.576,22.77]
[1688176046095,81.359,18.584,18.573,99.1374]
[1688176046291,22.761,18.584,18.574,22.772]
[1688176046499,165.458,18.591,18.574,22.772]
[1688176046500,58.578,18.591,18.574,22.772]
[1688176046690,4.45367561,18.59,18.574,22.772]
[1688176046885,22.753,18.591,18.575,20.0]
[1688176047095,7.61879722,18.594,18.579,81.38]
[1688176047096,22.754,18.59,18.579,81.38]
[1688176047389,22.754,18.59,18.573,206.1154]
[1688176047595,22.754,18.59,18.58,22.765]
[1688176047806,22.754,18.59,18.581,55.0]
[1688176048188,22.754,18.59,18.581,77.764]
[1688176050409,22.754,18.59,18.581,55.0]
[1688176050608,22.754,18.59,18.58,55.0]
[1688176051606,22.754,18.59,18.579,55.0]
[1688176051813,22.754,18.59,18.579,77.767]
[1688176052504,22.754,18.59,18.573,99.1374]
[1688176052711,5.53959972,18.589,18.573,99.1374]
[1688176053014,81.359,18.585,18.573,99.1374]
[1688176053914,81.359,18.585,18.571,22.777]
[1688176054211,4.25756318,18.584,18.572,20.0]
[1688176054510,22.765,18.581,18.572,42.775]
[1688176055805,22.765,18.581,18.573,55.0]
[1688176056001,22.765,18.581,18.572,42.775]
[1688176056211,22.765,18.581,18.567,10.83719922]
[1688176056415,10.88346,18.58,18.568,22.78]
[1688176056605,22.77,18.577,18.566,95.908]
[1688176056808,22.77,18.577,18.566,118.691]
[1688176057617,22.77,18.577,18.567,55.0]
[1688176058216,22.77,18.577,18.567,77.782]
[1688176059703,22.768,18.579,18.567,77.782]
[1688176066333,188.317,18.581,18.567,77.782]
[1688176066334,45.535,18.581,18.567,77.782]
[1688176066633,5.48390504,18.587,18.575,22.772]
[1688176066927,22.761,18.584,18.576,77.77]
[1688176067419,22.761,18.584,18.576,55.0]
[1688176067829,22.761,18.584,18.575,55.0]
[1688176068919,22.761,18.584,18.575,77.772]
[1688176069418,22.761,18.584,18.575,55.0]
[1688176069721,22.761,18.584,18.568,10.83719922]
[1688176069927,36.05410496,18.583,18.569,22.778]
[1688176070122,22.767,18.579,18.569,22.778]
[1688176070629,22.767,18.579,18.565,58.657]
[1688176070832,22.767,18.579,18.567,22.781]
[1688176072334,22.767,18.579,18.568,55.0]
[1688176072544,22.767,18.579,18.571,22.777]
[1688176072835,22.767,18.579,18.572,55.0]
[1688176073016,22.767,18.579,18.567,22.781]
[1688176073218,22.767,18.579,18.568,55.0]
[1688176073622,22.767,18.579,18.568,77.78]
[1688176074120,22.767,18.579,18.568,77.779]
[1688176075029,22.767,18.579,18.568,55.0]
[1688176075733,22.767,18.579,18.568,77.781]
[1688176076033,22.766,18.581,18.569,20.0]
[1688176076335,22.766,18.581,18.573,22.773]
[1688176076533,22.766,18.581,18.574,55.0]
[1688176079536,22.766,18.581,18.574,77.773]
[1688176079839,55.0,18.585,18.574,22.773]
[1688176080046,55.0,18.585,18.575,55.0]
[1688176080538,22.762,18.583,18.575,55.0]
[1688176080724,81.363,18.583,18.575,55.0]
[1688176080928,22.762,18.583,18.575,55.0]
[1688176081240,22.761,18.585,18.575,77.771]
[1688176081423,22.772,18.576,18.559,58.676]
[1688176081624,22.772,18.576,18.558,22.792]
[1688176081625,7.68735545,18.575,18.558,22.792]
[1688176081838,22.78,18.569,18.555,22.796]
[1688176082947,15.5508009,18.568,18.548,58.711]
[1688176083140,22.788,18.562,18.553,22.798]
[1688176084044,3.0699509,18.567,18.553,22.798]
[1688176084246,58.663,18.567,18.553,22.798]
[1688176084430,22.788,18.562,18.553,22.798]
[1688176085142,22.788,18.562,18.554,55.0]
[1688176085322,22.788,18.562,18.553,22.798]
[1688176085323,22.788,18.562,18.551,22.801]
[1688176085640,22.788,18.562,18.545,26.52826182]
[1688176085842,23.0699509,18.561,18.545,49.33726182]
[1688176086043,81.481,18.557,18.545,22.809]
[1688176086339,81.481,18.557,18.543,22.811]
[1688176086523,81.481,18.557,18.541,30.0]
[1688176086524,90.21095073,18.557,18.541,30.0]
[1688176086726,90.21095073,18.557,18.538,10.83719922]
[1688176087755,81.481,18.557,18.54,22.814]
[1688176087925,81.481,18.557,18.544,22.81]
[1688176088133,81.481,18.557,18.545,55.0]
[1688176089247,81.481,18.557,18.544,55.0]
[1688176090445,81.481,18.557,18.544,77.81]
[1688176095551,22.795,18.557,18.544,77.81]
[1688176099159,58.676,18.56,18.544,77.81]
[1688176099367,34.72,18.57,18.545,20.0]
[1688176099655,34.72,18.57,18.546,55.0]
[1688176099656,81.465,18.56,18.546,55.0]
[1688176100449,136.465,18.56,18.546,55.0]
[1688176100857,77.791,18.56,18.549,22.803]
[1688176101058,107.042,18.563,18.549,22.803]
[1688176101059,21.21883073,18.569,18.55,55.0]
[1688176101262,77.788,18.563,18.553,22.798]
[1688176101565,22.79,18.561,18.554,77.797]
[1688176102063,22.788,18.562,18.554,77.797]
[1688176102252,107.021,18.567,18.554,77.797]
[1688176102253,58.653,18.567,18.554,77.797]
[1688176102454,117.309,18.567,18.554,77.797]
[1688176102958,3.0699509,18.565,18.546,58.716]
[1688176103151,22.79,18.561,18.55,114.443]
[1688176103352,22.79,18.561,18.55,91.641]
[1688176104359,22.79,18.561,18.551,55.0]
[1688176110096,22.79,18.561,18.543,26.39854263]
[1688176110254,37.7599509,18.56,18.543,26.39854263]
[1688176110567,188.574,18.555,18.542,121.8139]
[1688176111352,188.574,18.555,18.542,22.812]
[1688176111567,188.574,18.555,18.54,45.18719922]
[1688176111767,188.574,18.555,18.534,53.66]
[1688176111952,22.803,18.55,18.54,22.815]
[1688176112152,22.803,18.55,18.538,22.816]
[1688176113272,22.803,18.55,18.539,55.0]
[1688176113664,22.803,18.55,18.54,91.8279]
[1688176114067,22.803,18.55,18.533,26.31136123]
[1688176114375,57.443,18.55,18.533,114.6509]
[1688176114774,57.443,18.55,18.533,125.48809922]
[1688176115362,57.443,18.55,18.535,22.821]
[1688176115568,57.443,18.55,18.536,55.0]
[1688176115962,22.803,18.55,18.536,77.82]
[1688176116678,22.803,18.55,18.536,88.65719922]
[1688176118185,22.803,18.55,18.537,10.83719922]
[1688176118487,22.803,18.55,18.54,22.815]
[1688176118672,22.803,18.55,18.541,55.0]
[1688176123974,22.803,18.55,18.533,91.8279]
[1688176124282,57.433,18.55,18.533,114.6509]
[1688176124785,69.91396,18.55,18.533,114.6509]
[1688176126483,69.91396,18.55,18.533,125.48809922]
[1688176126681,69.91396,18.55,18.534,55.0]
[1688176126882,69.91396,18.55,18.535,22.821]
[1688176127089,69.91396,18.55,18.536,55.0]
[1688176127578,12.47311,18.549,18.536,55.0]
[1688176127780,81.53,18.546,18.535,55.0]
[1688176129482,136.53,18.546,18.534,77.822]
[1688176130495,55.0,18.545,18.52,141.897]
[1688176130676,55.0,18.545,18.51,267.36439845]
[1688176130677,188.744,18.539,18.524,92.4815]
[1688176131170,188.744,18.539,18.524,115.3155]
[1688176131593,188.744,18.539,18.524,22.834]
[1688176132299,22.815,18.54,18.524,22.834]
[1688176132484,113.719,18.546,18.525,55.0]
[1688176132794,22.813,18.542,18.531,22.826]
[1688176132979,22.813,18.542,18.535,22.821]
[1688176133294,22.813,18.542,18.536,55.0]
[1688176134601,22.807,18.547,18.537,22.818]
[1688176134785,37.96842347,18.554,18.538,55.0]
[1688176134988,22.794,18.558,18.542,22.812]
[1688176135289,69.68,18.57,18.54,34.67]
[1688176135290,22.788,18.562,18.551,22.801]
[1688176135496,22.788,18.562,18.552,55.0]
[1688176135700,140.127,18.562,18.552,55.0]
[1688176136496,20.0,18.561,18.552,55.0]
[1688176136698,20.0,18.561,18.552,77.8]
[1688176136699,22.793,18.559,18.552,77.8]
[1688176136899,58.66,18.565,18.552,77.8]
[1688176137191,22.789,18.562,18.552,77.8]
[1688176140115,22.789,18.562,18.552,171.4273]
[1688176141497,22.789,18.562,18.552,93.6273]
[1688176142481,22.789,18.562,18.552,116.4273]
[1688176143396,22.787,18.563,18.552,116.4273]
[1688176143599,22.787,18.563,18.556,22.795]
[1688176143780,22.787,18.563,18.557,77.794]
[1688176144085,22.787,18.563,18.558,55.0]
[1688176145885,22.784,18.566,18.558,77.792]
[1688176146089,55.0,18.568,18.558,77.792]
[1688176146281,22.785,18.565,18.552,93.6273]
[1688176146482,22.785,18.565,18.555,22.796]
[1688176146688,22.785,18.565,18.556,55.0]
[1688176146906,22.785,18.565,18.553,55.0]
[1688176147087,22.785,18.565,18.556,22.795]
[1688176147291,22.785,18.565,18.557,55.0]
[1688176148201,22.785,18.565,18.557,77.794]
[1688176149203,22.785,18.565,18.557,55.0]
[1688176149404,22.785,18.565,18.556,55.0]
[1688176150196,22.785,18.565,18.556,77.795]
[1688176152606,22.793,18.559,18.54,34.4]
[1688176152791,22.793,18.559,18.544,30.0]
[1688176153687,22.793,18.559,18.545,22.808]
[1688176154196,22.793,18.559,18.548,22.805]
[1688176154390,22.793,18.559,18.549,55.0]
[1688176155504,22.793,18.559,18.544,10.83719922]
[1688176155888,22.793,18.559,18.541,121.6032]
[1688176156106,22.793,18.559,18.542,30.83719922]
[1688176156289,22.793,18.559,18.542,53.64919922]
[1688176157003,22.793,18.559,18.543,55.0]
[1688176157309,35.27385,18.559,18.543,77.811]
[1688176157500,55.0,18.558,18.542,10.83719922]
[1688176157704,188.592,18.554,18.535,26.83329246]
[1688176157903,188.592,18.554,18.533,107.211]
[1688176157904,20.0,18.553,18.54,22.815]
[1688176158090,22.804,18.55,18.54,22.815]